fUSD/lending_fUSD_20250708
["ID","MTS","AMOUNT","RATE_DAILY","PERIOD"]
[370296031,1751941838400,-460.0,0.00030136,7]
[370296033,1751941838410,-460.0,0.00030136,7]
[370296035,1751941838420,-460.0,0.00030136,7]
[370296037,1751941838429,-500.0,0.00030136,7]
[370296039,1751941838438,-460.0,0.00030136,7]
[370296041,1751941838449,-460.0,0.00030136,7]
[370296043,1751941838458,-503.99205992,0.00030136,7]
[370296045,1751941838471,-465.19865232,0.00030136,7]
[370296047,1751941838480,-460.0,0.00030136,7]
[370296049,1751941838489,-694.68,0.00030136,7]
[370296051,1751941838498,-460.0,0.00030136,7]
[370296053,1751941838509,-557.63518123,0.00030136,7]
[370296055,1751941838519,-152.30898007,0.00030136,7]
[370296057,1751941838528,-460.0,0.00030136,7]
[370296059,1751941838537,-460.0,0.00030136,7]
[370296061,1751941838549,-726.7,0.00030136,7]
[370296063,1751941838559,-481.98813231,0.00030136,7]
[370296065,1751941838568,-561.15734155,0.00030136,7]
[370296067,1751941838578,-500.0,0.00030136,7]
[370296069,1751941838587,-460.0,0.00030136,7]
[370296071,1751941838596,-460.0,0.00030136,7]
[370296073,1751941838605,-460.0,0.00030136,7]
[370296075,1751941838614,-486.40905277,0.00030136,7]
[370296077,1751941838625,-150.0,0.00030136,7]
[370296079,1751941838634,-460.0,0.00030136,7]
[370296099,1751941838825,-153.79131067,0.00030136,7]
[370296101,1751941838835,-460.0,0.00030136,7]
[370296103,1751941838846,-150.0,0.00030136,7]
[370296105,1751941838855,-460.0,0.00030136,7]
[370296107,1751941838864,-462.48634962,0.00030136,7]
[370296109,1751941838874,-460.0,0.00030136,7]
[370296111,1751941838883,-460.0,0.00030136,7]
[370296113,1751941838892,-500.0,0.00030136,7]
[370296114,1751941838902,-460.0,0.00030136,7]
[370296116,1751941838911,-695.84,0.00030136,7]
[370296117,1751941838921,-495.82944679,0.00030136,7]
[370296118,1751941838930,-460.0,0.00030136,7]
[370296119,1751941838939,-460.0,0.00030136,7]
[370296120,1751941838948,-150.0,0.00030136,7]
[370296121,1751941838958,-500.0,0.00030136,7]
[370296122,1751941838967,-493.22066943,0.00030136,7]
[370296123,1751941838977,-467.25321045,0.00030136,7]
[370296124,1751941838986,-460.0,0.00030136,7]
[370296125,1751941838997,-150.0,0.00030136,7]
[370296126,1751941839007,-460.0,0.00030136,7]
[370296127,1751941839016,-460.0,0.00030136,7]
[370296128,1751941839028,-152.2297318,0.00030136,7]
[370296129,1751941839038,-460.0,0.00030136,7]
[370296130,1751941839047,-460.0,0.00030136,7]
[370296131,1751941839058,-460.0,0.00030136,7]
[370296132,1751941839067,-150.0,0.00030136,7]
[370296133,1751941839077,-460.0,0.00030136,7]
[370296134,1751941839086,-500.0,0.00030136,7]
[370296135,1751941839096,-505.75222447,0.00030136,7]
[370296136,1751941839106,-672.92,0.00030136,7]
[370296137,1751941839116,-500.0,0.00030136,7]
[370296138,1751941839125,-460.0,0.00030136,7]
[370296139,1751941839135,-469.76605937,0.00030136,7]
[370296140,1751941839144,-460.0,0.00030136,7]
[370296141,1751941839154,-460.0,0.00030136,7]
[370296142,1751941839164,-460.0,0.00030136,7]
[370296143,1751941839174,-460.0,0.00030136,7]
[370296144,1751941839183,-150.0,0.00030136,7]
[370296145,1751941839192,-460.0,0.00030136,7]
[370296146,1751941839201,-500.0,0.00030136,7]
[370296147,1751941839211,-460.0,0.00030136,7]
[370296148,1751941839222,-460.0,0.00030136,7]
[370296149,1751941839231,-460.0,0.00030136,7]
[370296150,1751941839240,-460.0,0.00030136,7]
[370296151,1751941839249,-460.0,0.00030136,7]
[370296152,1751941839258,-684.91,0.00030136,7]
[370296153,1751941839268,-535.12622577,0.00030136,7]
[370296154,1751941839278,-460.0,0.00030136,7]
[370296155,1751941839288,-493.13860777,0.00030136,7]
[370296156,1751941839297,-861.74,0.00030136,7]
[370296157,1751941839306,-150.0,0.00030136,7]
[370296158,1751941839315,-460.0,0.00030136,7]
[370296159,1751941839325,-500.0,0.00030136,7]
[370296160,1751941839334,-460.0,0.00030136,7]
[370296161,1751941839343,-460.0,0.00030136,7]
[370296162,1751941839352,-150.0,0.00030136,7]
[370296163,1751941839361,-460.0,0.00030136,7]
[370296164,1751941839371,-150.0,0.00030136,7]
[370296165,1751941839380,-460.0,0.00030136,7]
[370296166,1751941839389,-234.68553962,0.00030136,7]
[370296167,1751941839398,-492.64760018,0.00030136,7]
[370296168,1751941839408,-460.0,0.00030136,7]
[370296169,1751941839416,-460.0,0.00030136,7]
[370296170,1751941839426,-468.00705264,0.00030136,7]
[370296171,1751941839435,-460.0,0.00030136,7]
[370296172,1751941839445,-491.98273323,0.00030136,7]
[370296173,1751941839454,-500.0,0.00030136,7]
[370296174,1751941839466,-460.0,0.00030136,7]
[370296175,1751941839476,-460.0,0.00030136,7]
[370296176,1751941839486,-500.17162265,0.00030136,7]
[370296177,1751941839496,-460.0,0.00030136,7]
[370296178,1751941839505,-150.0,0.00030136,7]
[370296179,1751941839516,-460.0,0.00030136,7]
[370296180,1751941839526,-460.0,0.00030136,7]
[370296181,1751941839536,-460.0,0.00030136,7]
[370296182,1751941839547,-150.0,0.00030136,7]
[370296183,1751941839557,-460.0,0.00030136,7]
[370296184,1751941839567,-150.0,0.00030136,7]
[370296185,1751941839577,-460.0,0.00030136,7]
[370296186,1751941839586,-847.27,0.00030136,7]
[370296187,1751941839595,-500.0,0.00030136,7]
[370296188,1751941839605,-460.0,0.00030136,7]
[370296189,1751941839614,-496.54368997,0.00030136,7]
[370296190,1751941839623,-460.0,0.00030136,7]
[370296191,1751941839633,-481.12794053,0.00030136,7]
[370296192,1751941839643,-460.0,0.00030136,7]
[370296194,1751941839653,-463.37174553,0.00030136,7]
[370296195,1751941839662,-462.48926985,0.00030136,7]
[370296196,1751941839672,-471.55821742,0.00030136,7]
[370296197,1751941839681,-460.0,0.00030136,7]
[370296198,1751941839691,-752.26,0.00030136,7]
[370296199,1751941839701,-460.0,0.00030136,7]
[370296200,1751941839710,-460.0,0.00030136,7]
[370296201,1751941839720,-468.91740961,0.00030136,7]
[370296202,1751941839729,-460.0,0.00030136,7]
[370296203,1751941839739,-460.0,0.00030136,7]
[370296204,1751941839748,-460.0,0.00030136,7]
[370296205,1751941839758,-460.0,0.00030136,7]
[370296207,1751941839767,-460.0,0.00030136,7]
[370296208,1751941839778,-465.71866212,0.00030136,7]
[370296209,1751941839787,-460.0,0.00030136,7]
[370296210,1751941839796,-460.0,0.00030136,7]
[370296211,1751941839805,-465.11135794,0.00030136,7]
[370296212,1751941839817,-460.0,0.00030136,7]
[370296213,1751941839826,-460.0,0.00030136,7]
[370296214,1751941839835,-460.0,0.00030136,7]
[370296215,1751941839846,-460.0,0.00030136,7]
[370296216,1751941839855,-460.0,0.00030136,7]
[370296217,1751941839865,-460.0,0.00030136,7]
[370296218,1751941839874,-500.03709122,0.00030136,7]
[370296219,1751941839883,-460.0,0.00030136,7]
[370296220,1751941839893,-460.0,0.00030136,7]
[370296221,1751941839903,-1129.21,0.00030136,7]
[370296222,1751941839912,-460.0,0.00030136,7]
[370296223,1751941839921,-460.0,0.00030136,7]
[370296224,1751941839931,-460.0,0.00030136,7]
[370296225,1751941839941,-460.0,0.00030136,7]
[370296226,1751941839950,-460.0,0.00030136,7]
[370296227,1751941839960,-158.62282897,0.00030136,7]
[370296228,1751941839970,-859.22,0.00030136,7]
[370296229,1751941839979,-460.0,0.00030136,7]
[370296230,1751941839989,-496.05,0.00030136,7]
[370296231,1751941839999,-460.0,0.00030136,7]
[370296232,1751941840008,-461.60109166,0.00030136,7]
[370296233,1751941840018,-506.75782349,0.00030136,7]
[370296234,1751941840028,-460.0,0.00030136,7]
[370296235,1751941840037,-727.29,0.00030136,7]
[370296236,1751941840047,-460.0,0.00030136,7]
[370296237,1751941840056,-460.0,0.00030136,7]
[370296238,1751941840065,-460.0,0.00030136,7]
[370296239,1751941840074,-460.0,0.00030136,7]
[370296240,1751941840084,-455.32838253,0.00030136,7]
[370296241,1751941840094,-464.43850724,0.00030136,7]
[370296242,1751941840103,-491.36,0.00030136,7]
[370296243,1751941840112,-460.0,0.00030136,7]
[370296244,1751941840122,-460.0,0.00030136,7]
[370296245,1751941840131,-460.0,0.00030136,7]
[370296246,1751941840140,-460.0,0.00030136,7]
[370296247,1751941840150,-460.0,0.00030136,7]
[370296248,1751941840159,-659.35,0.00030136,7]
[370296249,1751941840170,-1031.55,0.00030136,7]
[370296250,1751941840180,-461.96505009,0.00030136,7]
[370296251,1751941840189,-683.97,0.00030136,7]
[370296253,1751941840199,-460.0,0.00030136,7]
[370296254,1751941840211,-648.01,0.00030136,7]
[370296256,1751941840221,-460.0,0.00030136,7]
[370296258,1751941840230,-460.0,0.00030136,7]
[370296260,1751941840240,-494.98377401,0.00030136,7]
[370296262,1751941840249,-500.0,0.00030136,7]
[370296264,1751941840259,-460.0,0.00030136,7]
[370296266,1751941840269,-765.59,0.00030136,7]
[370296268,1751941840279,-1795.02,0.00030136,7]
[370296270,1751941840288,-426.8157637,0.00030136,7]
[370296272,1751941840299,-492.30771552,0.00030136,7]
[370296274,1751941840309,-525.81917817,0.00030136,7]
[370296276,1751941840318,-460.0,0.00030136,7]
[370296278,1751941840328,-460.0,0.00030136,7]
[370296280,1751941840338,-460.0,0.00030136,7]
[370296282,1751941840348,-625.5,0.00030136,7]
[370296284,1751941840357,-493.05099273,0.00030136,7]
[370296286,1751941840368,-529.46,0.00030136,7]
[370296287,1751941840378,-460.0,0.00030136,7]
[370296288,1751941840388,-460.0,0.00030136,7]
[370296289,1751941840398,-741.27,0.00030136,7]
[370296290,1751941840408,-460.0,0.00030136,7]
[370296291,1751941840417,-596.71,0.00030136,7]
[370296292,1751941840426,-460.0,0.00030136,7]
[370296293,1751941840436,-460.0,0.00030136,7]
[370296294,1751941840445,-565.98,0.00030136,7]
[370296295,1751941840455,-460.0,0.00030136,7]
[370296296,1751941840466,-464.01440211,0.00030136,7]
[370296297,1751941840477,-460.0,0.00030136,7]
[370296298,1751941840487,-460.0,0.00030136,7]
[370296299,1751941840497,-476.85774785,0.00030136,7]
[370296300,1751941840507,-460.0,0.00030136,7]
[370296301,1751941840517,-460.0,0.00030136,7]
[370296302,1751941840531,-460.0,0.00030136,7]
[370296303,1751941840542,-739.48,0.00030136,7]
[370296304,1751941840551,-460.0,0.00030136,7]
[370296305,1751941840561,-498.58255992,0.00030136,7]
[370296306,1751941840570,-864.46,0.00030136,7]
[370296307,1751941840580,-460.0,0.00030136,7]
[370296308,1751941840589,-794.88,0.00030136,7]
[370296309,1751941840599,-460.0,0.00030136,7]
[370296310,1751941840609,-460.0,0.00030136,7]
[370296311,1751941840618,-795.15,0.00030136,7]
[370296312,1751941840633,-503.19450568,0.00030136,7]
[370296313,1751941840647,-577.73,0.00030136,7]
[370296314,1751941840656,-499.99726213,0.00030136,7]
[370296315,1751941840666,-527.57435321,0.00030136,7]
[370296316,1751941840677,-900.95,0.00030136,7]
[370296317,1751941840692,-460.0,0.00030136,7]
[370296318,1751941840702,-460.0,0.00030136,7]
[370296319,1751941840711,-460.0,0.00030136,7]
[370296320,1751941840722,-460.0,0.00030136,7]
[370296321,1751941840732,-460.0,0.00030136,7]
[370296322,1751941840742,-824.52,0.00030136,7]
[370296323,1751941840752,-460.0,0.00030136,7]
[370296324,1751941840761,-707.54,0.00030136,7]
[370296325,1751941840771,-460.0,0.00030136,7]
[370296326,1751941840781,-460.0,0.00030136,7]
[370296327,1751941840791,-460.0,0.00030136,7]
[370296328,1751941840800,-460.0,0.00030136,7]
[370296329,1751941840809,-460.0,0.00030136,7]
[370296330,1751941840819,-732.45,0.00030136,7]
[370296331,1751941840828,-460.0,0.00030136,7]
[370296332,1751941840837,-460.0,0.00030136,7]
[370296333,1751941840847,-768.56,0.00030136,7]
[370296334,1751941840857,-707.7,0.00030136,7]
[370296335,1751941840867,-593.26,0.00030136,7]
[370296336,1751941840876,-493.5331945,0.00030136,7]
[370296337,1751941840887,-460.0,0.00030136,7]
[370296338,1751941840897,-460.0,0.00030136,7]
[370296340,1751941840906,-460.0,0.00030136,7]
[370296342,1751941840916,-460.0,0.00030136,7]
[370296344,1751941840925,-672.14,0.00030136,7]
[370296346,1751941840934,-492.28569057,0.00030136,7]
[370296348,1751941840943,-464.45191333,0.00030136,7]
[370296350,1751941840953,-675.4,0.00030136,7]
[370296352,1751941840963,-322.64,0.00030136,7]
[370296354,1751941840972,-490.81433701,0.00030136,7]
[370296356,1751941840981,-460.0,0.00030136,7]
[370296358,1751941840991,-460.0,0.00030136,7]
[370296360,1751941841000,-460.0,0.00030136,7]
[370296361,1751941841009,-150.0,0.00030136,7]
[370296363,1751941841019,-460.0,0.00030136,7]
[370296366,1751941841029,-460.0,0.00030136,7]
[370296367,1751941841038,-460.0,0.00030136,7]
[370296370,1751941841048,-460.0,0.00030136,7]
[370296372,1751941841058,-460.0,0.00030136,7]
[370296374,1751941841076,-460.0,0.00030136,7]
[370296377,1751941841088,-460.0,0.00030136,7]
[370296379,1751941841097,-492.74600376,0.00030136,7]
[370296381,1751941841107,-522.10436096,0.00030136,7]
[370296383,1751941841116,-500.0,0.00030136,7]
[370296385,1751941841125,-460.0,0.00030136,7]
[370296387,1751941841135,-460.0,0.00030136,7]
[370296389,1751941841144,-494.0749746,0.00030136,7]
[370296391,1751941841155,-493.59685711,0.00030136,7]
[370296393,1751941841164,-727.11,0.00030136,7]
[370296395,1751941841174,-463.79782558,0.00030136,7]
[370296397,1751941841184,-460.0,0.00030136,7]
[370296399,1751941841194,-460.0,0.00030136,7]
[370296401,1751941841203,-465.02046237,0.00030136,7]
[370296403,1751941841212,-547.51,0.00030136,7]
[370296405,1751941841222,-1650.45,0.00030136,7]
[370296407,1751941841233,-460.0,0.00030136,7]
[370296409,1751941841243,-461.76318991,0.00030136,7]
[370296411,1751941841254,-460.0,0.00030136,7]
[370296413,1751941841264,-460.0,0.00030136,7]
[370296415,1751941841274,-460.0,0.00030136,7]
[370296417,1751941841284,-577.08,0.00030136,7]
[370296419,1751941841293,-716.92,0.00030136,7]
[370296421,1751941841303,-460.0,0.00030136,7]
[370296423,1751941841315,-460.0,0.00030136,7]
[370296426,1751941841324,-460.0,0.00030136,7]
[370296428,1751941841334,-460.0,0.00030136,7]
[370296430,1751941841343,-460.0,0.00030136,7]
[370296432,1751941841353,-460.0,0.00030136,7]
[370296452,1751941841538,-797.4,0.00030136,7]
[370296454,1751941841548,-460.0,0.00030136,7]
[370296456,1751941841559,-490.0,0.00030136,7]
[370296458,1751941841568,-460.0,0.00030136,7]
[370296460,1751941841577,-460.0,0.00030136,7]
[370296462,1751941841587,-491.82505583,0.00030136,7]
[370296464,1751941841596,-460.0,0.00030136,7]
[370296466,1751941841605,-1640.32,0.00030136,7]
[370296468,1751941841614,-460.0,0.00030136,7]
[370296470,1751941841624,-492.59770095,0.00030136,7]
[370296472,1751941841633,-681.43,0.00030136,7]
[370296474,1751941841643,-490.82906402,0.00030136,7]
[370296476,1751941841652,-491.55843342,0.00030136,7]
[370296478,1751941841661,-460.0,0.00030136,7]
[370296480,1751941841671,-2804.1,0.00030136,7]
[370296482,1751941841680,-460.0,0.00030136,7]
[370296484,1751941841690,-491.03301343,0.00030136,7]
[370296486,1751941841699,-525.58,0.00030136,7]
[370296488,1751941841708,-463.19911604,0.00030136,7]
[370296490,1751941841718,-460.0,0.00030136,7]
[370296492,1751941841727,-460.0,0.00030136,7]
[370296494,1751941841737,-460.0,0.00030136,7]
[370296496,1751941841747,-460.0,0.00030136,7]
[370296498,1751941841757,-490.65012776,0.00030136,7]
[370296500,1751941841766,-493.2253439,0.00030136,7]
[370296502,1751941841775,-305.06173253,0.00030136,7]
[370296504,1751941841784,-413.245056,0.00030136,7]
[370296506,1751941841793,-158.359475,0.00030136,7]
[370296508,1751941841802,-460.0,0.00030136,7]
[370296510,1751941841811,-1291.01,0.00030136,7]
[370296512,1751941841821,-167.277439,0.00030136,7]
[370296514,1751941841830,-465.67541921,0.00030136,7]
[370296516,1751941841839,-158.998156,0.00030136,7]
[370296518,1751941841849,-460.0,0.00030136,7]
[370296520,1751941841858,-460.0,0.00030136,7]
[370296522,1751941841867,-492.11647627,0.00030136,7]
[370296524,1751941841876,-385.978385,0.00030136,7]
[370296526,1751941841886,-460.0,0.00030136,7]
[370296528,1751941841899,-837.09214054,0.00030136,7]
[370296530,1751941841908,-506.833832,0.00030136,7]
[370296532,1751941841918,-1563.25062213,0.00030136,7]
[370296534,1751941841927,-1520.65,0.00030136,7]
[370296536,1751941841937,-490.83593818,0.00030136,7]
[370296538,1751941841947,-460.0,0.00030136,7]
[370296540,1751941841956,-460.0,0.00030136,7]
[370296542,1751941841966,-695.98,0.00030136,7]
[370296544,1751941841975,-781.09,0.00030136,7]
[370296546,1751941841985,-460.0,0.00030136,7]
[370296548,1751941841994,-460.0,0.00030136,7]
[370296550,1751941842003,-490.86051182,0.00030136,7]
[370296552,1751941842012,-492.134891,0.00030136,7]
[370296554,1751941842022,-460.0,0.00030136,7]
[370296556,1751941842031,-460.0,0.00030136,7]
[370296558,1751941842040,-874.65,0.00030136,7]
[370296560,1751941842050,-492.14664004,0.00030136,7]
[370296562,1751941842060,-460.0,0.00030136,7]
[370296564,1751941842069,-210.34477682,0.00030136,7]
[370296566,1751941842079,-460.0,0.00030136,7]
[370296568,1751941842088,-460.0,0.00030136,7]
[370296570,1751941842097,-282.9741734,0.00030136,7]
[370296572,1751941842107,-460.0,0.00030136,7]
[370296574,1751941842118,-460.0,0.00030136,7]
[370296576,1751941842129,-492.03711182,0.00030136,7]
[370296578,1751941842139,-460.0,0.00030136,7]
[370296580,1751941842148,-540.64,0.00030136,7]
[370296582,1751941842158,-460.0,0.00030136,7]
[370296584,1751941842167,-493.32092977,0.00030136,7]
[370296586,1751941842177,-460.0,0.00030136,7]
[370296588,1751941842187,-460.0,0.00030136,7]
[370296590,1751941842197,-460.0,0.00030136,7]
[370296592,1751941842206,-566.89,0.00030136,7]
[370296594,1751941842216,-460.0,0.00030136,7]
[370296596,1751941842225,-750.54,0.00030136,7]
[370296598,1751941842235,-964.86,0.00030136,7]
[370296600,1751941842245,-460.0,0.00030136,7]
[370296602,1751941842255,-493.44948484,0.00030136,7]
[370296604,1751941842264,-460.0,0.00030136,7]
[370296606,1751941842274,-460.0,0.00030136,7]
[370296608,1751941842284,-491.81216486,0.00030136,7]
[370296610,1751941842293,-492.54093032,0.00030136,7]
[370296612,1751941842303,-460.0,0.00030136,7]
[370296614,1751941842312,-460.0,0.00030136,7]
[370296616,1751941842322,-491.11574809,0.00030136,7]
[370296618,1751941842332,-463.46306695,0.00030136,7]
[370296620,1751941842341,-774.26,0.00030136,7]
[370296622,1751941842351,-460.0,0.00030136,7]
[370296624,1751941842360,-521.58,0.00030136,7]
[370296626,1751941842370,-460.0,0.00030136,7]
[370296628,1751941842379,-460.0,0.00030136,7]
[370296630,1751941842388,-460.0,0.00030136,7]
[370296632,1751941842398,-644.93,0.00030136,7]
[370296634,1751941842410,-3222.1,0.00030136,7]
[370296636,1751941842420,-492.54799584,0.00030136,7]
[370296638,1751941842429,-460.0,0.00030136,7]
[370296640,1751941842438,-460.0,0.00030136,7]
[370296642,1751941842448,-460.0,0.00030136,7]
[370296644,1751941842458,-460.0,0.00030136,7]
[370296646,1751941842468,-460.0,0.00030136,7]
[370296648,1751941842478,-495.47166711,0.00030136,7]
[370296650,1751941842487,-460.0,0.00030136,7]
[370296652,1751941842497,-492.3970383,0.00030136,7]
[370296654,1751941842508,-460.0,0.00030136,7]
[370296656,1751941842517,-490.0,0.00030136,7]
[370296658,1751941842528,-460.0,0.00030136,7]
[370296660,1751941842537,-500.0,0.00030136,7]
[370296662,1751941842547,-460.0,0.00030136,7]
[370296664,1751941842556,-460.0,0.00030136,7]
[370296665,1751941842566,-460.0,0.00030136,7]
[370296667,1751941842575,-460.0,0.00030136,7]
[370296669,1751941842585,-493.55949542,0.00030136,7]
[370296671,1751941842594,-686.42,0.00030136,7]
[370296673,1751941842603,-603.64237886,0.00030136,7]
[370296675,1751941842612,-636.64,0.00030136,7]
[370296677,1751941842622,-460.0,0.00030136,7]
[370296679,1751941842631,-460.0,0.00030136,7]
[370296681,1751941842641,-1580.2,0.00030136,7]
[370296682,1751941842651,-460.0,0.00030136,7]
[370296683,1751941842660,-460.0,0.00030136,7]
[370296685,1751941842670,-460.0,0.00030136,7]
[370296686,1751941842680,-650.64,0.00030136,7]
[370296687,1751941842689,-492.46465641,0.00030136,7]
[370296688,1751941842699,-460.0,0.00030136,7]
[370296689,1751941842708,-493.67333748,0.00030136,7]
[370296690,1751941842718,-664.74,0.00030136,7]
[370296691,1751941842727,-1231.87,0.00030136,7]
[370296692,1751941842738,-460.0,0.00030136,7]
[370296694,1751941842747,-497.46800498,0.00030136,7]
[370296696,1751941842757,-491.51011193,0.00030136,7]
[370296698,1751941842767,-460.0,0.00030136,7]
[370296700,1751941842776,-661.7,0.00030136,7]
[370296701,1751941842786,-490.88547784,0.00030136,7]
[370296702,1751941842796,-460.0,0.00030136,7]
[370296703,1751941842805,-460.0,0.00030136,7]
[370296704,1751941842815,-1589.43,0.00030136,7]
[370296705,1751941842824,-460.0,0.00030136,7]
[370296706,1751941842834,-512.04,0.00030136,7]
[370296707,1751941842843,-575.78720525,0.00030136,7]
[370296708,1751941842853,-460.0,0.00030136,7]
[370296709,1751941842863,-300.0,0.00030136,2]
[370296710,1751941842872,-460.0,0.00030136,7]
[370296712,1751941842882,-495.95,0.00030136,7]
[370296714,1751941842891,-460.0,0.00030136,7]
[370296716,1751941842900,-518.53876335,0.00030136,7]
[370296718,1751941842910,-493.28678261,0.00030136,7]
[370296720,1751941842919,-490.0,0.00030136,7]
[370296722,1751941842928,-460.0,0.00030136,7]
[370296724,1751941842937,-460.0,0.00030136,7]
[370296725,1751941842947,-491.75465476,0.00030136,7]
[370296727,1751941842956,-760.43,0.00030136,7]
[370296728,1751941842965,-537.9794569,0.00030136,7]
[370296729,1751941842974,-491.47721666,0.00030136,7]
[370296730,1751941842983,-489.62,0.00030136,7]
[370296731,1751941842993,-460.0,0.00030136,7]
[370296732,1751941843002,-460.0,0.00030136,7]
[370296733,1751941843011,-545.56,0.00030136,7]
[370296734,1751941843020,-460.0,0.00030136,7]
[370296735,1751941843030,-460.0,0.00030136,7]
[370296736,1751941843039,-460.0,0.00030136,7]
[370296737,1751941843048,-460.0,0.00030136,7]
[370296738,1751941843058,-460.0,0.00030136,7]
[370296739,1751941843067,-496.35772822,0.00030136,7]
[370296740,1751941843076,-460.0,0.00030136,7]
[370296741,1751941843086,-512.95,0.00030136,7]
[370296742,1751941843095,-460.0,0.00030136,7]
[370296743,1751941843104,-1798.1,0.00030136,7]
[370296744,1751941843114,-491.69193651,0.00030136,7]
[370296745,1751941843123,-500.0,0.00030136,2]
[370296746,1751941843133,-491.02493864,0.00030136,7]
[370296747,1751941843143,-460.0,0.00030136,7]
[370296748,1751941843153,-460.0,0.00030136,7]
[370296749,1751941843163,-460.0,0.00030136,7]
[370296750,1751941843174,-460.0,0.00030136,7]
[370296751,1751941843183,-1198.0,0.00030136,7]
[370296752,1751941843195,-460.0,0.00030136,7]
[370296753,1751941843204,-460.0,0.00030136,7]
[370296754,1751941843215,-460.0,0.00030136,7]
[370296755,1751941843225,-506.62873028,0.00030136,7]
[370296756,1751941843235,-500.19,0.00030136,7]
[370296757,1751941843245,-632.57,0.00030136,7]
[370296758,1751941843255,-153.50955,0.00030136,7]
[370296759,1751941843266,-460.0,0.00030136,7]
[370296760,1751941843277,-460.0,0.00030136,7]
[370296761,1751941843286,-460.0,0.00030136,7]
[370296762,1751941843295,-491.64478457,0.00030136,7]
[370296763,1751941843304,-554.77170749,0.00030136,7]
[370296764,1751941843314,-500.0,0.00030136,7]
[370296765,1751941843323,-492.94356529,0.00030136,7]
[370296766,1751941843332,-214.678662,0.00030136,7]
[370296767,1751941843341,-150.0,0.00030136,7]
[370296768,1751941843352,-460.0,0.00030136,7]
[370296769,1751941843361,-460.0,0.00030136,7]
[370296770,1751941843370,-500.0,0.00030136,2]
[370296771,1751941843379,-491.1722072,0.00030136,7]
[370296772,1751941843389,-430.76,0.00030136,7]
[370296773,1751941843400,-460.0,0.00030136,7]
[370296774,1751941843410,-500.0,0.00030136,7]
[370296775,1751941843420,-460.0,0.00030136,7]
[370296776,1751941843429,-491.79299705,0.00030136,7]
[370296777,1751941843438,-460.0,0.00030136,7]
[370296778,1751941843448,-492.3388612,0.00030136,7]
[370296779,1751941843460,-704.92,0.00030136,7]
[370296781,1751941843473,-491.36608465,0.00030136,7]
[370296783,1751941843482,-1000.0,0.00030136,7]
[370296785,1751941843491,-490.0,0.00030136,7]
[370296787,1751941843501,-879.29,0.00030136,7]
[370296789,1751941843511,-1058.42,0.00030136,7]
[370296791,1751941843520,-500.0,0.00030136,60]
[370296793,1751941843530,-496.6,0.00030136,7]
[370296795,1751941843540,-987.66,0.00030136,7]
[370296796,1751941843551,-494.05687201,0.00030136,7]
[370296798,1751941843561,-460.0,0.00030136,7]
[370296800,1751941843570,-500.0,0.00030136,7]
[370296802,1751941843580,-491.69182884,0.00030136,7]
[370296804,1751941843590,-496.94587243,0.00030136,7]
[370296806,1751941843599,-460.0,0.00030136,7]
[370296808,1751941843608,-460.0,0.00030136,7]